Cogmind - Beta 10.2 @@@ ROGUE MODE // 2021.05.22 @ 21:21:32 Player: onyhow Result: Destroyed by D-53 Grenadier with Mini Grenade Launcher Performance ------------- Evolutions (0) 0 Regions Visited (2) 400 Robots Destroyed (22) 110 Value Destroyed (417) 417 Prototype IDs (4) 80 Alien Tech Used (0) 0 Bonus (3) 3 TOTAL SCORE: 1010 Bonus ------- Follower Combat Kills 14 Friendly Fire -11 Cogmind --------- Core Integrity 0/250 Matter 300/300 Energy 125/125 System Corruption 0% Temperature Cool (20) Movement Core (700) Ox13 Location -10/Mines Parts ------- > --- POWER (1) -------- Light Ion Engine > --- PROPULSION (2) --- (None) > --- UTILITY (2) ------ Small Storage Unit High-capacity Storage Unit > --- WEAPON (2) ------- Grenade Launcher > --- INVENTORY (14) --- Light Treads Light Treads Light Treads Improved Heat Sink Improved Heat Sink Small Storage Unit Large Storage Unit Large Storage Unit High-capacity Storage Unit High-capacity Storage Unit Small Laser Particle Gun Light Assault Rifle Peak State ------------ > --- POWER ------------ Ion Engine > --- PROPULSION ------- Light Treads Light Treads > --- UTILITY ---------- Small Storage Unit High-capacity Storage Unit > --- WEAPON ----------- Medium Laser Light Assault Rifle > --- INVENTORY -------- Light Ion Engine Light Treads Light Treads Light Treads Small Storage Unit High-capacity Storage Unit High-capacity Storage Unit Beam Cannon Beam Cannon Grenade Launcher [Rating: 8] Favorites ----------- Power Ion Engine Engine Ion Engine Propulsion Light Treads Treads Light Treads Leg Aluminum Leg Utility Small Storage Unit Storage Small Storage Unit Weapon Medium Laser Energy Gun Medium Laser Energy Cannon Beam Cannon Ballistic Gun Light Assault Rifle Launcher Grenade Launcher Build | -11 -10 -10 ------- Run | Scr Mat Min Slots Evolved . | . . . Power . | . . . Propulsion . | . . . Utility . | . . . Weapon . | . . . Parts Attached 18 | 7 9 2 Power 3 | 1 1 1 Engine 3 | 1 1 1 Core . | . . . Reactor . | . . . Propulsion 5 | 2 3 . Treads 2 | . 2 . Leg 3 | 2 1 . Wheel . | . . . Hover . | . . . Flight . | . . . Utility 3 | 2 1 . Device . | . . . Storage 3 | 2 1 . Processor . | . . . Hackware . | . . . Protection . | . . . Artifact . | . . . Weapon 7 | 2 4 1 Energy Gun 3 | 1 2 . Energy Cannon 2 | . 2 . Ballistic Gun 1 | 1 . . Ballistic Cannon . | . . . Launcher 1 | . . 1 Special Weapon . | . . . Impact Weapon . | . . . Slashing Weapon . | . . . Piercing Weapon . | . . . Special Melee Weapon . | . . . Unidentified Prototypes . | . . . Parts Lost 10 | . 6 4 Power 2 | . 1 1 Propulsion 3 | . 1 2 Utility . | . . . Weapon 5 | . 4 1 Highest Loss Streak 4 | . 4 2 Average Slot Usage (%) 92 | . 94 84 Engine 13 | . 14 13 Treads 20 | . 21 14 Leg 5 | . 6 . Storage 28 | . 28 28 Energy Gun 7 | . 8 . Energy Cannon 6 | . 5 14 Ballistic Gun 7 | . 8 . Launcher 1 | . . 14 Naked Turns . | . . . Heaviest Build 46 | 16 46 45 Greatest Support 40 | 20 40 40 Greatest Overweight (x) 3 | 3 1 2 Average Overweight (x) . | . . 1 Largest Inventory Capacity 14 | 8 14 14 Average Capacity 12 | 6 12 14 Most Carried 13 | 5 12 13 Average Carried 8 | 3 8 10 Final Capacity 14 | 8 14 14 Final Carried 13 | 4 11 13 Class Distribution -------------------- 100% | Mutant Dominant Class ---------------- Mutant | -10/Materials Mutant | -10/Mines Resources | -11 -10 -10 ----------- Run | Scr Mat Min Matter Collected 388 | 275 63 50 Remotely . | . . . Salvage Created 616 | 96 311 209 Parts 42 | 2 22 18 Haulers Intercepted . | . . . Recyclers Shooed . | . . . Parts Field Recycled . | . . . Retrieved Matter . | . . . Parts Self-Destructed . | . . . Prevented . | . . . Kills | -11 -10 -10 ------- Run | Scr Mat Min Combat Hostiles Destroyed 18 | . 13 5 Guns 9 | . 9 . Cannons 8 | . 4 4 AOE 1 | . . 1 Classes Destroyed 5 | 1 3 1 Builder 2 | . . 2 Recycler 1 | 1 . . Watcher 1 | . 1 . Swarmer 10 | . 9 1 Grunt 8 | . 4 4 Best Kill Streak 4 | 1 4 4 Combat Bots Only 4 | . 4 3 Max Kills in Single Turn 2 | 1 1 2 Gunslinging . | . . . Exploded 1 | . . 1 Melee . | . . . Uniques/NPCs Destroyed . | . . . Combat | -11 -10 -10 -------- Run | Scr Mat Min Damage Taken 1173 | . 874 299 Core 263 | . 155 108 Absorbed by Shields . | . . . Core Remaining (%) 100 | 100 . . Volleys Fired 53 | 5 38 10 Largest 2 | 2 2 2 Hottest 120 | 70 120 90 Shots Fired 92 | 10 68 14 Gun 61 | 10 51 . Cannon 27 | . 17 10 Launcher 4 | . . 4 Special . | . . . Kinetic 27 | 5 22 . Thermal 61 | 5 46 10 Explosive 4 | . . 4 Electromagnetic . | . . . Robot Hit Streak 9 | 9 8 3 Robot Miss Streak 5 | . 5 3 Penetration Max . | . . . Secondary Targets 3 | . 3 . Max Gunslinging Chain 1 | . 1 . Shots Hit Robots 53 | 9 37 7 Core Hits 30 | 2 20 8 Critical Hits . | . . . Critical Kills . | . . . Critical Parts Destroyed . | . . . Melee Attacks . | . . . Impact . | . . . Slashing . | . . . Piercing . | . . . Sneak Attacks . | . . . Combat Hostiles . | . . . Follow-up Attacks . | . . . Damage Inflicted 941 | 106 438 397 Guns 393 | 106 287 . Cannons 227 | . 139 88 Explosions 309 | . . 309 Melee . | . . . Ramming 12 | . 12 . Kinetic 131 | 43 88 . Thermal 489 | 63 338 88 Explosive 309 | . . 309 Electromagnetic . | . . . Impact . | . . . Slashing . | . . . Piercing . | . . . Highest Corruption . | . . . Average Corruption . | . . . Corruption Purged . | . . . Overload Shots . | . . . Overflow Damage 4 | . . 4 Projectiles 4 | . . 4 Explosions . | . . . Melee . | . . . Knockbacks . | . . . Impact . | . . . Kinetic . | . . . Secondary . | . . . Self-Inflicted Damage . | . . . Shots . | . . . Rammed 4 | . 4 . Targets Rammed 4 | . 4 . Kicked . | . . . Crushed . | . . . Highest Temperature 195 | 90 195 156 Average Temperature 71 | 53 77 57 Received Heat Transfer 303 | . 222 81 Siege Activations . | . . . Robots Corrupted . | . . . Combat Hostiles . | . . . Parts Fried . | . . . Impact Corruptions . | . . . Robots Melted . | . . . Combat Hostiles . | . . . Parts Melted 3 | . 3 . Heat Transferred 1258 | 185 888 185 Parts Sabotaged . | . . . Parts Stolen . | . . . Parts Stripped . | . . . Power Chain Reactions . | . . . Missiles Intercepted . | . . . Alert | -11 -10 -10 ------- Run | Scr Mat Min Peak Influence 197 | 5 197 144 Initial 3 | . 3 . Average 58 | 1 60 75 Maximum Alert Level . | . . . Low Security (%) 100 | 100 100 100 Level 1 . | . . . Level 2 . | . . . Level 3 . | . . . Level 4 . | . . . Level 5 . | . . . High Security . | . . . Max Security . | . . . Squads Dispatched 1 | . 1 . Investigation . | . . . Extermination . | . . . Reinforcement 1 | . 1 . Assault . | . . . Garrison . | . . . Intercept . | . . . Construction Impeded . | . . . Haulers Reinforced . | . . . Stealth | -11 -10 -10 --------- Run | Scr Mat Min Distress Signals 1 | . 1 . Communications Jammed . | . . . Distress Signals . | . . . Times Spotted 27 | . 17 10 Peak Tracking Total 5 | . 5 4 Tactical Retreats . | . . . Traps | -11 -10 -10 ------- Run | Scr Mat Min Traps Triggered 1 | . 1 . Indirectly . | . . . Trap Hack Attempts . | . . . Triggered . | . . . Disarmed . | . . . Reprogrammed . | . . . Reused . | . . . Traps Extracted . | . . . Installed . | . . . Triggered . | . . . Machines | -11 -10 -10 ---------- Run | Scr Mat Min Machines Disabled . | . . . Max in Single Turn . | . . . Machines Sabotaged . | . . . Garrisons Compromised . | . . . Overloaded Fab Kills . | . . . Fab Network Shutdowns . | . . . Hacking | -11 -10 -10 --------- Run | Scr Mat Min Machines Accessed 6 | . 6 . Terminals 6 | . 6 . Fabricators . | . . . Repair Stations . | . . . Recycling Units . | . . . Scanalyzers . | . . . Garrison Access . | . . . Total Hacks 22 | . 22 . Successful 11 | . 11 . Failed 10 | . 10 . Catastrophic 1 | . 1 . Database Lockouts 1 | . 1 . Manual 12 | . 12 . Terminals 22 | . 22 . Fabricators . | . . . Repair Stations . | . . . Recycling Units . | . . . Scanalyzers . | . . . Garrison Access . | . . . Terminal Hacks 11 | . 11 . Part Schematic 3 | . 3 . Prototype ID Bank 3 | . 3 . Branch Access Points 1 | . 1 . Unreport Threat 1 | . 1 . Locate Traps 1 | . 1 . Zone Layout 2 | . 2 . Fabricator Hacks . | . . . Repair Station Hacks . | . . . Recycling Unit Hacks . | . . . Scanalyzer . | . . . Garrison Access Hacks . | . . . Unauthorized Hacks . | . . . Terminals . | . . . Fabricators . | . . . Repair Stations . | . . . Recycling Units . | . . . Scanalyzers . | . . . Garrison Access . | . . . Data Cores Recovered . | . . . Used . | . . . Hacking Detections 6 | . 6 . Full Trace Events . | . . . Feedback Events . | . . . Feedback Blocked . | . . . Robot Schematics Acquired . | . . . Robots Built . | . . . Matter . | . . . Time . | . . . Total Robot Build Rating . | . . . Part Schematics Acquired 3 | . 3 . Parts Built . | . . . Matter . | . . . Time . | . . . Total Part Build Rating . | . . . Parts Repaired . | . . . Time . | . . . Parts Recycled . | . . . Recycled Matter . | . . . Retrieved Matter . | . . . Retrieved Components . | . . . Parts Scanalyzed . | . . . Part Schematics Acquired . | . . . Parts Damaged . | . . . Bothacking | -11 -10 -10 ------------ Run | Scr Mat Min Used RIF Installer . | . . . Robots Hacked . | . . . Non-combat . | . . . Combat . | . . . Robot Hacks Applied . | . . . Relay Couplers Released . | . . . Robots Rewired . | . . . Allies Hacked . | . . . Hacks Repelled . | . . . Allies | -11 -10 -10 -------- Run | Scr Mat Min Total Allies 1 | . . 1 Largest Group 1 | . . 1 Highest-Rated Group 31 | . . 31 Highest-Rated Ally 31 | . . 31 Total Orders . | . . . Ally Attacks 5 | . . 5 Total Damage 84 | . . 84 Kills 2 | . . 2 Allies Corrupted . | . . . Allies Melted . | . . . Intel | -11 -10 -10 ------- Run | Scr Mat Min Robot Analysis Total . | . . . Derelict Logs Recovered . | . . . Drone Launches . | . . . Drone Recoveries . | . . . Exploration | -11 -10 -10 ------------- Run | Scr Mat Min Turns Passed 1311 | 92 1068 151 Spaces Moved 673 | 48 564 61 Core 9 | 9 . . Treads 472 | . 411 61 Legs 192 | 39 153 . Wheels . | . . . Hover . | . . . Flight . | . . . Fastest Speed 50 | 50 120 180 Average Speed 164 | 127 163 198 Slowest Speed 200 | 200 180 200 Overloaded Moves . | . . . Propulsion Burnouts . | . . . Robots Hopped . | . . . Cave-ins Triggered . | . . . Exploration Rate (%) 37 | 3 94 14 Regions Visited 2 Branch Regions 1 Pre-discovered Areas 1 | . . 1 Known Exits Taken 1 | . 1 . Unknown Exits Taken 1 | 1 . . Scrap Searched . | . . . Spaces Dug . | . . . Terrain Destroyed 13 | . . 13 Melee . | . . . Projectile . | . . . AOE 13 | . . 13 Terrain Rammed . | . . . Walls Destroyed . | . . . Machines Disabled . | . . . Actions | -11 -10 -10 --------- Run | Scr Mat Min Total 790 | 70 643 77 Wait 13 | . 13 . Move 671 | 47 563 61 Hop . | . . . Pick Up 30 | 11 15 4 Fast Attach . | . . . Attach 16 | 7 7 2 Detach . | . . . Swap 2 | . 2 . Drop 1 | . 1 . Fire 53 | 5 38 10 Melee . | . . . Ram . | . . . Kick . | . . . Crush 4 | . 4 . Escape Stasis . | . . . Rewire . | . . . Trap . | . . . Miscellaneous . | . . . Route ------- -11/Scrapyard -10/Materials (discovered 3 exits: [*Mat x2] / *Min) -10/Mines (discovered 1 exit: [*Mat]) History --------- Turn | Location | Event 43 | -11/Scrapyard | Discovered new exit (range 16) 93 | -11/Scrapyard | Entered Materials 155 | -10/Materials | Identified exit to Mines 180 | -10/Materials | Discovered new exit (range 14) 250 | -10/Materials | Central database locked down 305 | -10/Materials | Build established: Mutant 786 | -10/Materials | Core integrity fell below 50% 826 | -10/Materials | Lost 4 parts (1p3w) 1026 | -10/Materials | Discovered new exit (range 16) 1161 | -10/Materials | Entered Mines 1171 | -10/Mines | Discovered new exit (range 13) 1176 | -10/Mines | Met a Derelict bent on vengeance 1189 | -10/Mines | Escorted by a lone wolf Derelict 1209 | -10/Mines | Learned location of Storage (-9) 1285 | -10/Mines | Assembled infested the area 1311 | -10/Mines | Core integrity fell below 20% 1312 | -10/Mines | Destroyed by D-53 Grenadier with Mini Grenade Launcher Last Messages --------------- 01255_ S-10 Pest destroyed. 01257_ Lgt. Ion Engine destroyed. 01259_ S-10 Pest destroyed. 01262_ SM-8G7(g): "Mission, incomplete...*fzzt*" 01262_ SM-8G7(g) destroyed. 01263_ Acquired 4 matter. 01265_ G-47 Trooper destroyed. 01268_ Acquired 10 matter. 01270_ G-34 Mercenary destroyed. 01276_ Acquired Lgt. Assault Rifle. 01279_ Acquired Imp. Heat Sink. 01285_ ALERT: Infestation in the mines, dispatching Demolisher response squad. 01286_ Acquired Particle Gun. 01291_ Acquired Imp. Heat Sink. 01309_ C-30 ARC bursts open, deploying its payload. 01309_ D-53 Grenadier unfolds itself. 01309_ Lgt. Treads destroyed. 01310_ T-07 Excavator destroyed. 01311_ Beam Cannon destroyed. Map ----- +----------------------------------------------------+ | ?????????????????????????????????????????????????? | | ?????????????????????????????????????????????????? | | ?????????????????????????????????????????????????? | | ?????????????????????????????????????????????????? | | ?????????????????????????????????????????????????? | | ?????????????????????????????????????????????????? | | ?????????????????????????????????????????????????? | | ?????????????????????????????????????????????????? | | ?????????????????????????????????????????????????? | | ?????????????????????????????????????????????????? | | ?????????????????????????????????????????????????? | | ?????????????????????????????????????????????????? | | ?????????????????????????????????????????????????? | | ????????????????????####????????????????####?????? | | ???????????????????? #?????????????### #?????? | | ???????????????????? #????????????## #?????# | | ????????????????????# #??????????### #????## | | ????????????????????# #?########## #?????# | | ????????????????????# #?# #?????## | | ????????????????????# #?# #???### | | ????????????????????# #?# ###### ##???# | | ????????????????????# ### =##???## ##??## | | ????????????????????# #*% ##???## #??# | | ????????????????????# dd #????## #??# = = | | ????????????????????#== ##?????# #### | | ????????????????????# * @ #?????# | | ????????????????????#% = ##?????## | | ????????????????????# [ #??????######### ## | | ????????????????????## *! ##??????????????####? | | ?????????????????????## % #???????????????????? | | ??????????????????????#### ##???????????????????? | | ?????????????????????????####????????????????????? | | ?????????????????????????????????????????????????? | | ?????????????????????????????????????????????????? | | ?????????????????????????????????????????????????? | | ?????????????????????????????????????????????????? | | ?????????????????????????????????????????????????? | | ?????????????????????????????????????????????????? | | ?????????????????????????????????????????????????? | | | | | | | | | | | | | | | | | | | | | | | +----------------------------------------------------+ Best States ------------- Heat Dissipation 25 Energy Generation 10 Energy Capacity 250 Matter Stores 300 Matter Capacity 300 Sight Range 16 Terrain Scan Density 10 Evasion (%) 40 Recoil Reduction 2 Item Schematics ----------------- Lrg. Storage Unit | -10/Materials | Hacked Med. Storage Unit | -10/Materials | Hacked ECM Suite | -10/Materials | Hacked Robot Schematics ------------------ None Fabricated ------------ Nothing Alien Tech Used ----------------- None Achievements -------------- None Challenges ------------ None Game ------ Seed AccelerationMassExtractor Manual? 0 Play Time 00:11:28 Cumulative 85.2 hours Start 2021.05.22 @ 00:32:31 End 2021.05.22 @ 21:21:32 Sessions 3 Manual Loads 0 Difficulty Rogue Special Mode None Game No. 59 Rogue 59 Adventurer 0 Explorer 0 Win Type - Total 0 Types 0/0/0/0/0/0/0/0/0 Lore% 25 Gallery% 45 Achievement% 31 Wizard Run 0 Options --------- ASCII 0 Keyboard 0 Movement Mouse Keybinds 0 Fullscreen 2 Font 18/SmallcapsGlow Map View 76x50 Tactical HUD 1 Map Filters NONE Filters NONE Steam 1 RUN: f5ca58cd-8555-476c-967b-1e82dac2efa0